bitfinex/quotes_ETHUSD_20260208
["timestamp","ask_amount","ask_price","bid_price","bid_amount"]
[1770593761980,4.84124422,2088.3,2086.4,1.95326802]
[1770593762134,0.1024,2088.2,2086.6,1.95226802]
[1770593762456,0.05243089,2088.4,2086.8,1.95226802]
[1770593762649,1.19691674,2088.7,2086.8,1.95326802]
[1770593762847,1.19691674,2088.7,2087.0,1.95226802]
[1770593763043,3.4474,2089.0,2087.2,1.95226802]
[1770593763044,1.24921162,2089.0,2087.2,1.95226802]
[1770593763243,0.05243089,2088.7,2087.2,1.95226802]
[1770593763443,1.24921162,2089.0,2087.3,1.19771954]
[1770593763658,0.05243089,2088.7,2087.3,1.19771954]
[1770593764397,1.19657301,2089.3,2087.4,1.95226802]
[1770593764533,0.05243089,2088.3,2087.2,1.1977697]
[1770593764733,0.05243089,2088.0,2086.8,0.001]
[1770593764964,0.05243089,2088.4,2087.2,1.19776289]
[1770593765168,0.05243089,2088.1,2087.0,1.19785821]
[1770593765342,0.15483089,2088.4,2087.2,1.19777238]
[1770593765547,1.197146,2088.3,2086.8,0.001]
[1770593766074,0.05243089,2088.2,2086.8,0.001]
[1770593766244,1.19691674,2088.7,2087.0,1.95226802]
[1770593766438,0.05243089,2088.5,2087.0,1.95226802]
[1770593766664,1.19691674,2088.7,2087.0,1.95226802]
[1770593766843,1.24932127,2088.8,2087.0,1.95226802]
[1770593767244,0.1024,2088.7,2087.0,1.95226802]
[1770593767444,1.24932127,2088.8,2087.2,1.95226802]
[1770593767754,1.19683538,2088.9,2087.4,1.95226802]
[1770593768142,1.19674578,2089.0,2087.4,1.95226802]
[1770593768875,0.15483089,2089.4,2087.7,1.95226802]
[1770593769281,4.59483211,2089.7,2087.7,1.95226802]
[1770593769582,4.59483211,2089.7,2087.5,1.19760479]
[1770593769583,1.19674485,2089.0,2087.5,1.19760479]
[1770593769779,0.05243089,2088.8,2087.5,1.19760479]
[1770593769953,1.19674485,2089.0,2087.6,1.95226802]
[1770593770451,0.05243089,2088.6,2087.5,1.19760479]
[1770593770652,0.05243089,2088.9,2087.5,1.19760479]
[1770593771906,0.05243089,2088.8,2087.3,4.79041916]
[1770593772173,0.05243089,2088.5,2087.2,4.79041916]
[1770593772968,0.05243089,2088.5,2087.2,1.19777692]
[1770593772969,0.05243089,2088.2,2087.2,1.19777692]
[1770593773164,0.05243089,2088.2,2087.1,3.15006082]
[1770593773376,0.05243089,2088.1,2086.8,0.001]
[1770593773882,1.197318,2088.0,2086.8,0.001]
[1770593774665,4.78835472,2088.6,2086.8,1.95326802]
[1770593774851,0.05243089,2088.4,2086.8,1.95326802]
[1770593775151,0.05243089,2088.1,2086.8,1.95326802]
[1770593775349,0.05243089,2088.4,2087.0,0.5]
[1770593775577,0.05243089,2088.1,2087.0,0.5]
[1770593775777,0.05243089,2087.8,2087.0,0.5]
[1770593775979,0.05243089,2087.5,2086.8,0.001]
[1770593776179,0.05243089,2087.8,2086.8,0.001]
[1770593776492,0.05243089,2087.5,2086.8,0.001]
[1770593776652,0.05243089,2087.2,2086.8,0.001]
[1770593776853,0.05243089,2087.8,2086.8,0.001]
[1770593777150,0.05243089,2087.5,2086.8,0.001]
[1770593777579,3.08682215,2088.0,2086.8,1.19896415]
[1770593777580,1.197318,2088.0,2086.8,1.19896415]
[1770593777882,1.197318,2088.0,2086.8,0.001]
[1770593777883,1.19749006,2087.7,2086.8,0.001]
[1770593778568,0.05243089,2087.6,2086.8,0.001]
[1770593779452,0.1024,2088.0,2086.8,0.001]
[1770593780082,1.19735556,2088.0,2086.8,0.001]
[1770593781356,10.61502258,2088.6,2087.0,1.91414047]
[1770593781357,0.002,2088.6,2087.0,1.91414047]
[1770593781553,0.05243089,2088.5,2087.2,1.91414047]
[1770593781760,1.25140632,2088.6,2087.2,1.91414047]
[1770593781964,1.19708868,2088.4,2087.3,1.19771954]
[1770593782380,0.002,2088.6,2087.4,1.91414047]
[1770593783476,1.19899351,2088.6,2087.4,1.91414047]
[1770593784086,0.002,2088.6,2087.6,1.91414047]
[1770593785264,0.002,2088.6,2087.7,6.553623]
[1770593785466,0.002,2088.6,2087.8,1.91414047]
[1770593786064,0.002,2088.6,2087.9,1.19737535]
[1770593786489,0.002,2088.6,2087.6,4.79000902]
[1770593786660,0.002,2088.6,2087.3,1.91414047]
[1770593786986,0.05243089,2088.2,2087.1,1.19782276]
[1770593787176,0.05243089,2088.5,2087.3,1.19771491]
[1770593787489,0.002,2088.6,2087.8,1.19742613]
[1770593787786,0.002,2088.6,2087.7,1.19745682]
[1770593787989,0.002,2088.6,2087.7,1.19744347]
[1770593788190,0.002,2088.6,2087.5,1.19760479]
[1770593788391,0.002,2088.6,2087.5,3.11174526]
[1770593788689,0.002,2088.6,2087.6,1.91414047]
[1770593788892,0.002,2088.6,2087.8,1.91414047]
[1770593789262,0.002,2088.6,2088.0,1.91414047]
[1770593789593,0.002,2088.8,2087.7,3.346]
[1770593789594,0.002,2088.8,2088.1,6.849068]
[1770593789764,0.002,2088.8,2088.2,1.91414047]
[1770593790589,0.002,2088.8,2088.3,1.197146]
[1770593790892,0.002,2088.8,2088.3,3.11128647]
[1770593791091,0.002,2088.8,2088.3,1.197146]
[1770593792796,0.002,2088.8,2088.1,4.78858401]
[1770593792973,0.002,2088.8,2088.2,1.91414047]
[1770593793496,0.002,2088.8,2088.1,4.78858401]
[1770593794896,0.002,2088.8,2088.2,1.91414047]
[1770593796108,0.002,2088.8,2087.9,1.197318]
[1770593796315,0.002,2089.1,2088.4,1.91414047]
[1770593796976,0.002,2089.1,2088.5,1.19703136]
[1770593797504,0.002,2089.1,2088.4,4.78812544]
[1770593797505,0.002,2089.1,2088.1,1.91414047]
[1770593797709,0.002,2089.1,2088.3,1.91414047]
[1770593797913,0.002,2089.1,2088.4,1.91414047]
[1770593800106,0.002,2089.1,2088.0,5.26014047]
[1770593800794,0.002,2089.1,2088.0,3.346]
[1770593801292,0.002,2089.1,2087.5,1.91414047]
[1770593801919,0.002,2089.1,2087.1,1.91414047]
[1770593801920,0.05243089,2088.7,2087.1,1.91414047]
[1770593802310,3.345,2088.9,2087.6,1.91414047]
[1770593802615,3.345,2088.9,2086.9,10.66545347]
[1770593802616,0.05243089,2088.5,2086.8,0.001]
[1770593802786,0.05243089,2088.5,2086.8,1.91514047]
[1770593802991,0.05243089,2088.5,2088.0,0.001]
[1770593803207,0.05243089,2088.2,2086.8,1.91514047]
[1770593803400,0.05243089,2088.2,2087.2,0.001]
[1770593803613,0.05243089,2087.7,2086.8,0.001]
[1770593803791,2.03485673,2087.7,2086.8,0.001]
[1770593803987,0.05243089,2087.3,2086.8,0.001]
[1770593804289,1.98242584,2087.3,2085.6,5.74036254]
[1770593804489,0.1024,2087.6,2085.7,0.05243089]
[1770593804720,0.05243089,2087.4,2085.7,1.91414047]
[1770593805017,2.03485673,2087.1,2085.5,6.59005292]
[1770593805322,0.1024,2087.5,2085.6,13.32756249]
[1770593805518,0.1024,2087.5,2085.8,10.782775]
[1770593805723,0.1024,2087.5,2085.8,4.970112]
[1770593805922,0.1024,2087.5,2085.8,4.011]
[1770593806087,5.23346193,2087.6,2085.8,4.011]
[1770593806293,1.88746193,2087.6,2086.0,0.05243089]
[1770593806510,1.88746193,2088.1,2086.4,3.9208]
[1770593806711,1.93989282,2088.5,2086.4,1.86884049]
[1770593806913,1.88746193,2088.2,2086.5,5.412674]
[1770593807101,1.93989282,2088.2,2086.5,3.041]
[1770593807419,2.04229282,2088.5,2086.6,1.92127138]
[1770593807814,0.05243089,2088.2,2086.6,1.86884049]
[1770593808010,1.93989282,2088.2,2086.4,3.338334]
[1770593808402,0.05243089,2087.9,2086.1,1.86884049]
[1770593808723,0.05243089,2087.6,2086.1,1.86884049]
[1770593808928,0.05243089,2087.6,2085.9,3.346]
[1770593809224,0.05243089,2087.3,2085.7,1.86884049]
[1770593809448,1.93989282,2087.0,2085.2,1.86884049]
[1770593809925,0.05243089,2086.9,2085.2,1.86884049]
[1770593810330,1.93989282,2086.9,2085.0,0.05243089]
[1770593810497,0.05243089,2086.6,2085.0,0.05243089]
[1770593810703,0.1024,2087.2,2085.1,1.86884049]
[1770593810901,0.05243089,2086.7,2085.1,1.86884049]
[1770593811118,0.05243089,2086.7,2084.8,3.346]
[1770593811307,1.93989282,2086.2,2085.5,6.53005292]
[1770593811515,1.93989282,2086.2,2084.3,3.959752]
[1770593811707,0.05243089,2085.9,2084.3,3.505022]
[1770593811911,1.93989282,2086.2,2084.3,3.505022]
[1770593812529,0.05243089,2085.9,2084.3,3.505022]
[1770593812700,0.05243089,2085.9,2083.8,0.05243089]
[1770593812701,1.88746193,2085.5,2083.8,5.894332]
[1770593813204,0.05243089,2085.9,2084.0,12.32995389]
[1770593813532,0.05243089,2085.9,2084.1,3.361745]
[1770593813701,5.23446193,2086.0,2084.1,2.265346]
[1770593813897,0.32821049,2086.2,2084.4,11.588394]
[1770593814239,0.32821049,2086.2,2084.5,3.060281]
[1770593814819,1.93989282,2086.1,2084.1,6.726712]
[1770593815031,0.05243089,2085.8,2084.2,0.001]
[1770593815229,0.05243089,2085.5,2084.2,0.001]
[1770593815526,1.93989282,2085.5,2084.2,0.001]
[1770593815934,0.05243089,2085.2,2084.2,0.001]
[1770593816239,0.05243089,2084.9,2084.2,0.001]
[1770593816437,1.93770379,2084.9,2084.2,0.001]
[1770593816739,1.88746193,2084.3,2083.1,0.001]
[1770593816971,1.88746193,2084.8,2083.1,0.001]
[1770593817102,1.88746193,2084.8,2083.2,2.0]
[1770593817531,0.05243089,2084.6,2083.1,0.001]
[1770593817720,1.88746193,2084.8,2083.1,0.001]
[1770593817918,0.05243089,2085.2,2083.3,16.660424]
[1770593818242,1.88746193,2084.8,2083.1,0.001]
[1770593818528,0.05243089,2084.9,2083.1,0.001]
[1770593818529,1.93989282,2084.4,2083.1,0.001]
[1770593818729,0.05243089,2084.1,2083.1,0.001]
[1770593819834,0.05519294,2083.8,2083.1,0.001]
[1770593820033,0.05243089,2084.1,2083.1,0.001]
[1770593820239,3.349,2084.4,2083.1,0.001]
[1770593820442,0.05519294,2084.3,2083.1,0.001]
[1770593820737,0.32858538,2084.3,2083.2,4.851989]
[1770593820940,0.31758537,2084.3,2083.4,10.545762]
[1770593821146,0.23072804,2084.3,2083.6,1.86884049]
[1770593821350,0.23072804,2084.3,2083.3,2.022239]
[1770593821523,0.23072804,2084.3,2083.4,2.182703]
[1770593821844,0.33413154,2085.2,2083.8,6.507293]
[1770593822048,0.33413154,2085.2,2083.8,4.41]
[1770593822252,0.33413154,2085.2,2083.8,3.91]
[1770593822446,0.33413154,2085.2,2084.0,6.522293]
[1770593822755,0.33413154,2085.2,2084.0,2.872]
[1770593822920,0.33413154,2085.2,2084.1,3.412]
[1770593823255,1.94265487,2085.1,2083.1,1.92503343]
[1770593823412,1.94265487,2085.1,2083.3,1.86884049]
[1770593823742,2.27047335,2085.1,2083.4,2.423639]
[1770593823938,2.21528041,2085.1,2083.4,2.423639]
[1770593824146,1.94265487,2084.7,2083.1,0.001]
[1770593824332,1.94265487,2084.4,2083.1,0.001]
[1770593824845,0.05519294,2084.1,2083.1,0.001]
[1770593825343,0.05519294,2083.8,2083.1,0.001]
[1770593826049,0.1024,2084.5,2083.1,0.001]
[1770593826269,1.94265487,2083.8,2083.1,0.001]
[1770593826845,1.88746193,2083.8,2083.1,0.001]
[1770593827045,0.05519294,2083.7,2083.1,0.001]
[1770593827248,1.88746193,2083.5,2079.0,18.161277]
[1770593827431,1.88746193,2083.5,2075.0,0.05519294]
[1770593827432,1.2527,2078.7,2075.8,0.33228201]
[1770593827622,1.2527,2078.7,2074.4,38.30826147]
[1770593827623,10.65100505,2076.8,2074.4,38.30826147]
[1770593827821,10.65100505,2076.8,2073.8,0.05519294]
[1770593827822,1.88746193,2075.8,2074.5,38.20826147]
[1770593828138,1.69034066,2075.3,2074.5,38.20826147]
[1770593828338,1.69034066,2075.3,2073.8,0.05519294]
[1770593828339,1.88746193,2075.0,2073.8,0.05519294]
[1770593828551,1.26776942,2074.7,2074.3,38.16570033]
[1770593828856,3.34494732,2075.5,2075.1,0.05519294]
[1770593829015,1.08345419,2076.1,2075.0,1.86884049]
[1770593829219,13.34916902,2076.8,2075.7,0.09090105]
[1770593829417,8.43113066,2077.8,2075.9,0.05519294]
[1770593829620,10.65100505,2078.1,2076.2,0.05519294]
[1770593829851,10.902156,2077.7,2076.0,15.93513599]
[1770593830148,2.0812584,2077.6,2075.6,0.05519294]
[1770593830324,0.05519294,2077.5,2075.7,15.93513599]
[1770593830524,0.05519294,2077.2,2075.4,15.93513599]
[1770593830724,0.05519294,2077.2,2074.8,15.93513599]
[1770593830725,0.05519294,2076.6,2074.8,15.93513599]
[1770593830924,0.05519294,2075.8,2074.7,2.614941]
[1770593831141,1.88746193,2077.3,2074.3,2.18144]
[1770593831142,0.05519294,2076.8,2074.3,2.18144]
[1770593831323,0.05519294,2076.2,2074.4,15.45316183]
[1770593831521,0.05519294,2074.7,2074.2,15.45316183]
[1770593831729,1.88746193,2074.3,2073.1,0.09015633]
[1770593831934,0.36103478,2074.6,2073.1,0.09015633]
[1770593832123,0.05519294,2075.1,2072.8,2.708188]
[1770593832449,0.05519294,2075.2,2072.5,4.83237949]
[1770593832752,1.88746193,2075.3,2072.7,2.153414]
[1770593832935,1.88746193,2076.0,2073.5,10.018591]
[1770593833127,0.05,2075.5,2073.6,3.357]
[1770593833353,0.05,2075.5,2073.7,2.798998]
[1770593833532,0.05,2075.5,2074.2,0.05519294]
[1770593833729,0.05,2076.2,2074.9,0.05519294]
[1770593833945,0.047,2076.5,2074.9,0.05519294]
[1770593834139,0.047,2076.1,2074.6,0.05519294]
[1770593834355,0.047,2075.7,2074.3,0.05519294]
[1770593834529,0.047,2075.5,2073.9,1.92403343]
[1770593834732,10.65100505,2077.1,2075.2,3.859558]
[1770593834943,1.88746193,2077.4,2075.4,0.05519294]
[1770593835250,2.2,2076.9,2075.4,0.05519294]
[1770593835451,2.2,2076.9,2075.5,2.248]
[1770593835752,2.2,2076.9,2075.2,3.883239]
[1770593836155,2.2,2076.9,2074.9,0.2335703]
[1770593836356,2.2,2076.9,2075.7,0.05519294]
[1770593836557,2.7058045,2078.1,2075.7,0.05519294]
[1770593836728,2.7058045,2078.1,2076.1,3.01598]
[1770593837037,0.05519294,2079.0,2076.7,0.05519294]
[1770593837221,6.14236462,2079.5,2077.0,0.05519294]
[1770593837425,6.14236462,2079.5,2076.4,2.93063486]
[1770593837426,0.05519294,2078.9,2076.9,3.36537294]
[1770593837623,0.05519294,2078.8,2076.9,0.05519294]
[1770593837852,0.05519294,2079.4,2076.7,0.05519294]
[1770593838067,0.05519294,2079.1,2076.8,3.326013]
[1770593838228,3.11103945,2080.0,2077.9,0.05519294]
[1770593838430,0.05519294,2079.2,2077.1,0.2335703]
[1770593838730,0.17138196,2077.3,2076.4,0.15759294]
[1770593838924,3.361,2079.9,2077.3,0.05519294]
[1770593839131,0.05519294,2079.5,2077.4,2.904921]
[1770593839430,3.4634,2079.9,2077.6,0.05519294]
[1770593839629,0.05519294,2079.5,2077.3,0.05519294]
[1770593839850,0.15759294,2079.6,2077.4,5.203838]
[1770593840155,3.16623239,2080.0,2077.6,0.05519294]
[1770593840357,0.05519294,2079.7,2077.6,0.05519294]
[1770593840675,3.16623239,2080.0,2078.3,13.846378]
[1770593840676,0.32867483,2080.0,2078.3,13.846378]
[1770593840954,0.32867483,2080.0,2078.3,5.49195]
[1770593841134,0.32867483,2080.0,2078.4,0.2335703]
[1770593841341,0.32867483,2080.0,2078.3,14.38451505]
[1770593841532,0.32867483,2080.0,2078.5,3.8908]
[1770593841727,0.32867483,2080.0,2078.5,0.2335703]
[1770593841928,0.32867483,2080.0,2078.4,7.57149294]
[1770593841929,0.26013385,2080.0,2078.9,0.2335703]
[1770593842131,0.00354,2082.2,2079.4,16.350019]
[1770593842132,10.65100505,2081.9,2079.4,16.350019]
[1770593842357,6.14336462,2082.0,2079.6,0.05519294]
[1770593842532,0.05519294,2080.9,2078.6,2.77304192]
[1770593842733,0.05519294,2080.6,2078.5,7.260232]
[1770593842979,10.65100505,2081.4,2079.0,0.05519294]
[1770593843265,0.2509608,2080.9,2078.7,0.05519294]
[1770593843441,0.2509608,2080.9,2078.6,3.361]
[1770593843442,0.05519294,2080.4,2078.8,2.083699]
[1770593843639,0.05519294,2080.1,2077.8,10.65100505]
[1770593843835,0.05519294,2080.5,2078.6,2.684682]
[1770593844251,2.83755756,2081.2,2078.8,0.05519294]
[1770593844473,10.65100505,2081.9,2079.2,4.4102]
[1770593844474,3.361,2081.7,2079.2,4.4102]
[1770593844659,3.361,2081.7,2079.5,10.249394]
[1770593844959,0.00354,2082.2,2080.1,3.61725]
[1770593845169,0.00354,2082.2,2080.1,3.53371]
[1770593845460,0.00354,2082.2,2080.0,0.05519294]
[1770593845461,0.05873294,2082.2,2079.7,10.70619799]
[1770593845660,0.00354,2082.2,2080.4,0.05519294]
[1770593846459,0.00354,2082.2,2080.2,2.677326]
[1770593846662,0.05519294,2082.1,2080.1,0.05519294]
[1770593846977,0.05519294,2081.8,2079.8,3.459]
[1770593847147,0.05519294,2081.5,2079.8,3.459]
[1770593847342,0.05519294,2081.2,2079.5,4.301767]
[1770593847547,0.05519294,2081.2,2079.5,2.786964]
[1770593847748,0.05519294,2081.2,2079.5,2.577387]
[1770593848043,0.05519294,2081.5,2079.3,10.454766]
[1770593848229,2.2,2081.0,2079.5,3.376033]
[1770593848633,2.2,2081.0,2079.5,2.114917]
[1770593848844,0.05519294,2081.8,2079.5,2.114917]
[1770593849054,0.05519294,2081.5,2079.5,2.512417]
[1770593849260,0.05519294,2081.8,2079.5,2.512417]
[1770593849261,0.05519294,2081.8,2079.7,10.70619799]
[1770593849462,0.99104221,2081.7,2079.5,3.359]
[1770593849663,0.05519294,2081.5,2079.6,5.372037]
[1770593849958,0.05519294,2081.2,2079.5,2.047341]
[1770593850163,0.05519294,2080.9,2079.1,0.05519294]
[1770593850387,0.05519294,2080.6,2078.9,2.040446]
[1770593850676,0.05519294,2081.2,2079.1,0.05519294]
[1770593850855,0.05519294,2081.2,2078.5,3.41419294]
[1770593850856,0.05519294,2080.5,2078.6,0.05519294]
[1770593851037,0.05519294,2080.8,2078.7,3.59913]
[1770593851244,0.99267211,2080.7,2079.0,2.337596]
[1770593851439,0.99267211,2080.6,2079.0,2.130586]
[1770593851640,0.05519294,2081.1,2078.3,2.888025]
[1770593851641,0.05519294,2080.2,2078.3,2.888025]
[1770593851876,0.99267211,2080.1,2078.0,14.740288]
[1770593852036,0.99267211,2080.1,2078.3,3.276543]
[1770593852239,0.99267211,2080.1,2078.2,0.05519294]
[1770593852440,1.04786505,2080.0,2078.3,2.623523]
[1770593852642,0.99267211,2079.9,2078.0,3.268883]
[1770593852840,2.83755756,2080.5,2078.3,2.240109]
[1770593852841,0.99267211,2079.8,2078.3,2.240109]
[1770593853041,0.99742354,2079.7,2078.3,3.291302]
[1770593853267,0.05519294,2081.2,2079.1,0.05519294]
[1770593853582,0.05519294,2080.7,2078.9,3.953925]
[1770593853746,0.99945209,2080.6,2078.9,3.953925]
[1770593853938,0.99945209,2080.5,2078.5,16.350019]
[1770593854264,0.99945209,2080.4,2079.0,0.05519294]
[1770593854446,0.99945209,2080.3,2079.1,2.436666]
[1770593854651,0.99945209,2080.2,2079.1,2.471926]
[1770593854968,1.00162277,2080.1,2078.7,0.05519294]
[1770593855141,1.00162277,2080.0,2078.8,3.04715]
[1770593855338,1.00162277,2079.9,2078.8,3.880186]
[1770593855548,1.00162277,2079.8,2078.8,3.880186]
[1770593855757,4.06878839,2080.9,2078.8,3.056186]
[1770593855958,1.00350936,2080.8,2078.8,3.056186]
[1770593856159,1.0587023,2080.7,2078.8,3.056186]
[1770593856363,0.05519294,2080.4,2078.8,2.00415]
[1770593856546,0.05519294,2080.4,2078.8,5.389867]
[1770593856547,1.00350936,2080.3,2078.8,5.389867]
[1770593856761,0.05519294,2078.9,2076.5,0.05519294]
[1770593856965,0.05519294,2078.3,2076.2,2.772252]
[1770593857154,0.05519294,2077.2,2075.7,14.01000505]
[1770593857355,1.00676186,2077.1,2075.9,6.435868]
[1770593857671,1.00820042,2077.0,2075.7,8.00453392]
[1770593857854,0.2382,2077.8,2076.2,10.960152]
[1770593858176,1.00806167,2077.7,2076.3,3.05465]
[1770593858344,1.00806167,2077.6,2076.3,3.05465]
[1770593858670,1.00806167,2077.5,2076.3,3.05465]
[1770593858973,1.00806167,2077.4,2076.2,10.960152]
[1770593859159,1.00806167,2077.4,2076.1,10.65100505]
[1770593859160,0.2382,2077.8,2076.7,0.05519294]
[1770593859544,0.2382,2077.8,2076.4,0.05519294]
[1770593859745,0.2382,2077.8,2076.5,10.960152]
[1770593859960,0.2382,2077.8,2076.7,0.05519294]
[1770593860167,0.2382,2077.8,2076.8,10.960152]
[1770593860446,0.2382,2077.8,2076.2,0.1024]
[1770593860447,0.05519294,2077.7,2075.7,0.05519294]
[1770593860758,0.05519294,2077.7,2076.1,2.974521]
[1770593860759,4.12398133,2077.7,2076.1,2.974521]
[1770593860958,4.06878839,2077.7,2076.0,3.236541]
[1770593861260,0.2382,2077.8,2076.6,5.745258]
[1770593861474,2.78236462,2077.0,2074.7,0.05519294]
[1770593861772,0.471633,2076.6,2075.0,0.05519294]
[1770593861943,0.471633,2076.6,2075.1,3.890305]
[1770593862143,0.471633,2076.6,2074.6,8.75619]
[1770593862477,4.06878839,2076.4,2074.6,4.25982]
[1770593862678,6.85115301,2076.5,2074.8,0.05519294]
[1770593862979,5.68978721,2076.6,2075.3,3.421598]
[1770593863162,4.06878839,2076.8,2075.2,0.05519294]
[1770593863466,4.06878839,2076.8,2074.5,0.15759294]
[1770593863467,4.06878839,2076.7,2075.0,0.05519294]
[1770593863673,4.06878839,2076.5,2075.1,5.048161]
[1770593864042,4.06878839,2076.4,2075.1,5.048161]
[1770593864441,9.7585756,2076.7,2075.4,8.256068]
[1770593864672,4.06878839,2076.9,2075.6,0.05519294]
[1770593864871,4.06878839,2076.8,2075.4,5.964198]
[1770593865076,4.06878839,2076.9,2075.4,5.964198]
[1770593865271,4.06878839,2076.9,2075.4,2.570857]
[1770593865471,4.06878839,2076.9,2075.3,0.05519294]
[1770593865774,4.06878839,2076.8,2075.3,2.26969994]
[1770593865971,0.01514623,2076.7,2075.6,0.05519294]
[1770593866178,0.01514623,2076.7,2075.7,2.89507]
[1770593866376,0.01514623,2076.7,2075.3,2.214507]
[1770593866870,4.06878839,2076.6,2075.3,2.291846]
[1770593867076,0.01514623,2076.5,2075.3,2.291846]
[1770593867254,0.01514623,2076.5,2075.2,3.361]
[1770593867569,0.01214623,2076.5,2075.3,2.531805]
[1770593867774,0.01214623,2076.5,2075.3,2.47693317]
[1770593868072,0.01214623,2076.5,2075.4,6.329843]
[1770593868375,0.01214623,2076.5,2075.3,2.76515]
[1770593868679,0.01214623,2076.5,2075.3,2.21215]
[1770593868858,0.01214623,2076.5,2075.2,3.361]
[1770593869375,6.85792931,2076.5,2074.8,0.001]
[1770593869573,6.85792931,2076.5,2075.1,3.128014]
[1770593869874,2.77699469,2076.4,2074.8,0.001]
[1770593870083,4.08093462,2076.3,2074.9,2.923022]
[1770593870268,0.01214623,2076.3,2074.9,2.143605]
[1770593870666,0.01214623,2076.3,2075.0,0.05519294]
[1770593870968,0.01214623,2076.3,2075.4,2.017733]
[1770593871149,0.01214623,2076.3,2075.7,5.449691]
[1770593871344,0.01214623,2076.3,2075.7,3.871719]
[1770593871550,0.01214623,2076.3,2075.7,3.600719]
[1770593871846,0.01214623,2076.3,2075.4,3.363]
[1770593872394,2.77699469,2076.2,2074.0,10.65100505]
[1770593872561,2.83218763,2075.9,2073.7,0.05519294]
[1770593872872,2.77699469,2075.5,2073.9,2.063064]
[1770593873074,0.05519294,2075.4,2073.9,2.029359]
[1770593873248,2.83218763,2075.4,2073.9,2.029359]
[1770593873452,5.68978721,2075.8,2074.5,0.05519294]
[1770593873672,2.77699469,2076.0,2074.0,10.65100505]
[1770593873880,6.84578308,2076.0,2074.2,0.05519294]
[1770593874180,4.06878839,2076.0,2074.5,0.05519294]
[1770593874370,2.83218763,2076.2,2074.2,0.05519294]
[1770593874572,2.83218763,2075.9,2074.2,0.05519294]
[1770593874754,2.83218763,2075.9,2074.0,6.795748]
[1770593874755,2.77699469,2075.8,2074.0,6.795748]
[1770593874954,2.77699469,2075.6,2074.0,3.890939]
[1770593875172,2.83218763,2075.6,2073.9,4.787398]
[1770593875387,6.84578308,2075.2,2073.0,10.65100505]
[1770593875684,2.77699469,2075.2,2073.7,6.628919]
[1770593875859,4.06878839,2075.5,2073.9,3.19694]
[1770593876062,2.77699469,2075.8,2074.1,0.05519294]
[1770593876284,2.77699469,2075.8,2074.5,0.05519294]
[1770593876592,4.06878839,2075.7,2074.2,2.777539]
[1770593876794,3.37614623,2076.3,2074.7,0.05519294]
[1770593876795,4.06878839,2076.0,2074.7,0.05519294]
[1770593876953,0.01214623,2076.3,2075.1,5.49671]
[1770593877158,0.01214623,2076.3,2075.3,0.05519294]
[1770593877359,0.01214623,2076.3,2075.4,6.966803]
[1770593877669,0.01214623,2076.3,2075.1,3.365]
[1770593878190,0.01214623,2076.3,2075.2,4.41827294]
[1770593878386,0.01214623,2076.3,2075.2,5.74202394]
[1770593878579,0.01214623,2076.3,2075.3,5.912789]
[1770593878777,0.01214623,2076.3,2075.5,0.05519294]
[1770593879286,0.01214623,2076.3,2075.1,3.365]
[1770593879663,4.06878839,2076.2,2075.1,3.365]
[1770593880270,4.06878839,2076.0,2075.1,3.365]
[1770593880498,4.06878839,2076.2,2075.0,0.001]
[1770593880668,4.06878839,2076.0,2075.0,0.001]
[1770593880990,0.01414623,2076.3,2075.2,4.708229]
[1770593881563,0.01414623,2076.3,2075.4,0.05519294]
[1770593881779,0.01414623,2076.3,2075.1,0.05519294]
[1770593881992,0.01414623,2076.3,2075.4,0.05519294]
[1770593882192,0.01414623,2076.3,2075.5,9.642811]
[1770593882390,0.01414623,2076.3,2075.7,0.05519294]
[1770593882565,8.43113066,2077.5,2075.8,8.813136]
[1770593882771,11.20812535,2077.9,2076.2,2.320511]
[1770593883090,3.365,2078.2,2076.5,0.05519294]
[1770593883388,6.14199469,2078.2,2076.6,3.3107]
[1770593883593,6.14199469,2078.2,2076.6,2.386096]
[1770593883801,6.14199469,2078.2,2076.4,0.05519294]
[1770593883965,6.14199469,2078.2,2076.9,4.646021]
[1770593884161,0.05519294,2079.2,2076.9,4.646021]
[1770593884162,5.49138017,2080.1,2078.0,10.433648]
[1770593884381,5.49138017,2080.1,2077.5,0.83633466]
[1770593884382,2.00946469,2080.0,2077.5,0.83633466]
[1770593884679,2.77699469,2079.5,2077.5,3.365]
[1770593884877,2.77699469,2079.5,2077.7,9.666118]
[1770593885080,2.83218763,2079.4,2077.6,3.404349]
[1770593885275,2.77699469,2079.4,2077.6,3.404349]
[1770593885863,2.77699469,2079.4,2077.6,14.13211034]
[1770593886083,2.77699469,2079.4,2077.7,9.666118]
[1770593886296,2.77699469,2079.4,2077.7,5.387965]
[1770593886598,2.77699469,2079.4,2077.7,7.567262]
[1770593886888,2.77699469,2079.4,2077.7,6.920184]
[1770593887069,2.77699469,2079.4,2077.7,6.212224]
[1770593887274,2.77699469,2079.4,2077.7,3.982194]
[1770593887471,2.83218763,2079.0,2077.0,10.72776134]
[1770593887675,2.77699469,2079.5,2077.1,0.05519294]
[1770593887879,2.77699469,2079.1,2077.2,8.666118]
[1770593888090,2.77699469,2079.0,2077.2,5.936493]
[1770593888391,2.77699469,2079.0,2077.5,5.555903]
[1770593888694,2.77699469,2079.0,2077.5,3.878873]
[1770593888890,2.77699469,2079.0,2077.2,5.936643]
[1770593889088,2.77699469,2079.0,2077.5,7.482809]
[1770593889395,0.05519294,2080.0,2077.6,0.05519294]
[1770593889396,2.77699469,2079.9,2077.6,0.05519294]
[1770593889595,2.77699469,2079.9,2077.7,8.666118]
[1770593889807,2.77699469,2079.9,2078.2,0.05519294]
[1770593889972,2.77699469,2079.9,2078.3,8.666118]
[1770593890300,2.77699469,2079.9,2078.6,8.666118]
[1770593890506,0.002,2080.1,2079.2,8.666118]
[1770593890667,0.002,2080.1,2079.3,5.585288]
[1770593890866,0.002,2080.1,2079.2,6.527761]
[1770593891102,2.77699469,2081.1,2079.6,8.666118]
[1770593891271,2.77699469,2081.1,2079.6,19.39387934]
[1770593891472,2.77699469,2081.1,2079.7,4.746349]
[1770593891699,2.77699469,2081.9,2079.7,4.746349]
[1770593891876,2.77699469,2081.9,2079.9,8.666118]
[1770593892091,2.77699469,2081.4,2079.6,4.819194]
[1770593892672,2.83218763,2081.3,2079.6,3.544224]
[1770593892874,2.77699469,2081.0,2079.4,5.29713]